fUSD/lending_fUSD_20251204
["ID","MTS","AMOUNT","RATE_DAILY","PERIOD"]
[396250083,1764879031603,-9089.96462923,0.00015911,2]
[396250084,1764879031617,-2407.32519619,0.00015911,2]
[396250085,1764879031627,-1524.73148706,0.00015911,2]
[396250087,1764879031726,-271.4814183,0.00015911,2]
[396250089,1764879031739,-703.78709464,0.00015911,2]
[396250091,1764879031748,-1000.0,0.00015911,2]
[396250093,1764879031757,-1562.7044883,0.00016,2]
[396250095,1764879031767,-54.85613539,0.00016008,2]
[396250098,1764879031779,-96.14386461,0.00016008,2]
[396250100,1764879031789,-500.0,0.0001601,2]
[396250102,1764879031798,-500.0,0.0001601,2]
[396250104,1764879031808,-500.0,0.0001601,2]
[396250106,1764879031818,-510.42176971,0.0001601,2]
[396250108,1764879031827,-500.0,0.0001601,2]
[396250110,1764879031836,-500.0,0.0001601,2]
[396250112,1764879031846,-14617.59103135,0.00016011,2]
[396250113,1764879031861,-2761.45611361,0.00016011,2]
[396250114,1764879031872,-134317.7638005,0.00016011,2]
[396250115,1764879031884,-776.15703811,0.00016011,2]
[396250116,1764879031895,-2416.9367329,0.00016011,2]
[396250117,1764879031907,-834.9769566,0.00016011,2]
[396250118,1764879032161,-1139.34274386,0.00016011,2]
[396250119,1764879032172,-531.67165279,0.00016011,2]
[396250120,1764879032183,-465.16903902,0.00016011,2]
[396250124,1764879037758,-6078.61369185,0.000162,2]
[396250125,1764879037768,-164.09,0.0001644,2]
[396250126,1764879037778,-2201.11483626,0.00017603,2]
[396250127,1764879037789,-1562.7044883,0.0001886,2]
[396250128,1764879037799,-2414.86832085,0.00018948,2]
[396250129,1764879037808,-409.34,0.00020187,2]
[396250130,1764879037819,-517.06794092,0.00020271,2]
[396250131,1764879037830,-1562.7044883,0.0002172,2]
[396250132,1764879037839,-2414.86832085,0.00021797,2]
[396250133,1764879037849,-5000.0,0.00022492,2]
[396250134,1764879037858,-1183.57299876,0.00024562,2]
[396250135,1764879037869,-2414.86832085,0.00024645,2]
[396250136,1764879037879,-1382.01,0.00024658,30]
[396250137,1764879037890,-183.92257978,0.000249,2]
[396250138,1764879037899,-7288.63222956,0.000249,3]
[396250139,1764879037908,-1214.77203826,0.0002498,3]
[396250140,1764879037918,-151.0,0.00024997,7]
[396250141,1764879037928,-177930.67547049,0.00025,2]
[396250142,1764879038023,-762.64682151,0.00025,2]
[396250143,1764879038116,-360.96000002,0.00025,2]
[396250144,1764879038131,-18421.1788147,0.00025,2]
[396250145,1764879038163,-11597.84384896,0.00025,2]
[396250146,1764879038174,-824.0894058,0.00025,2]
[396250167,1764879040506,-265.695,0.00015911,2]
[396250168,1764879040518,-759734.305,0.00015911,2]
[396250169,1764879040529,-1562.7044883,0.0002458,2]
[396250170,1764879040539,-17916.60868852,0.00025,2]
[396250171,1764879040550,-2068.0588488,0.00025208,2]
[396250172,1764879040564,-133183.86,0.00025487,2]
[396250173,1764879040574,-182.053965,0.00025487,7]
[396250174,1764879040585,-156.511989,0.00025487,7]
[396250175,1764879040595,-151.0,0.00025487,7]
[396250176,1764879040605,-151.0,0.00025487,7]
[396250177,1764879040615,-221.74067,0.00025487,7]
[396250178,1764879040624,-151.0,0.00025487,7]
[396250179,1764879040634,-151.0,0.00025487,7]
[396250180,1764879040644,-151.0,0.00025487,7]
[396250181,1764879040654,-151.0,0.00025487,7]
[396250182,1764879040664,-151.0,0.00025487,7]
[396250183,1764879040674,-251.625489,0.00025487,7]
[396250184,1764879040684,-171.178865,0.00025487,7]
[396250185,1764879040694,-151.0,0.00025487,7]
[396250186,1764879040705,-151.0,0.00025487,7]
[396250187,1764879040718,-151.0,0.00025487,7]
[396250188,1764879040728,-607.168677,0.00025487,7]
[396250189,1764879040738,-151.0,0.00025487,7]
[396250190,1764879040748,-607.168677,0.00025487,7]
[396250191,1764879040758,-607.168677,0.00025487,7]
[396250192,1764879040767,-607.168677,0.00025487,7]
[396250193,1764879040777,-151.0,0.00025487,7]
[396250194,1764879040788,-151.0,0.00025487,7]
[396250195,1764879040798,-151.0,0.00025487,7]
[396250196,1764879040809,-151.0,0.00025487,7]
[396250197,1764879040819,-151.0,0.00025487,7]
[396250198,1764879040828,-151.0,0.00025487,7]
[396250199,1764879040838,-721.070312,0.00025487,7]
[396250200,1764879040848,-721.070312,0.00025487,7]
[396250201,1764879040858,-721.070312,0.00025487,7]
[396250202,1764879040867,-721.070312,0.00025487,7]
[396250203,1764879040877,-409.34,0.00026676,2]
[396250204,1764879040887,-909.0,0.00027247,2]
[396250205,1764879040897,-500.0,0.00027479,14]
[396250206,1764879040907,-2414.86832085,0.00027493,2]
[396250207,1764879040917,-662.54,0.00027785,120]
[396250208,1764879040927,-200.0,0.0002799,2]
[396250209,1764879040938,-711.0,0.000281,5]
[396250210,1764879040949,-1852.42,0.00028178,2]
[396250211,1764879040959,-182.52831632,0.00029021,2]
[396250212,1764879040970,-150.0,0.00029582,15]
[396250213,1764879040981,-150.0,0.00029582,15]
[396250214,1764879040993,-500.0,0.00029582,15]
[396250215,1764879041003,-150.0,0.00029582,15]
[396250216,1764879041014,-1382.01,0.00029704,30]
[396250217,1764879041025,-150.0,0.00029719,15]
[396250218,1764879041035,-150.0,0.00029719,15]
[396250219,1764879041046,-531.0,0.00029719,15]
[396250220,1764879041057,-16643.9869,0.00029778,2]
[396250221,1764879041067,-150.0,0.00029856,15]
[396250222,1764879041077,-200.0,0.00029856,15]
[396250223,1764879041087,-1971.0,0.000299,2]
[396250224,1764879041100,-1000.0,0.000299,2]
[396250225,1764879041110,-278.0,0.00029993,15]
[396250226,1764879041120,-909.0,0.00030247,2]
[396250227,1764879041132,-2414.86832085,0.00030342,2]
[396250228,1764879041142,-7049.97,0.00030807,2]
[396250229,1764879041153,-662.54,0.00031259,120]
[396250230,1764879041163,-171.67608162,0.0003199,2]
[396250231,1764879041173,-150.84,0.0003199,2]
[396250232,1764879041183,-150.0,0.00032,6]
[396250233,1764879041193,-25000.0,0.00032,10]
[396250234,1764879041203,-189.9923239,0.00032748,2]
[396250235,1764879041214,-505.0,0.00032877,10]
[396250236,1764879041224,-153.87482149,0.00032877,15]
[396250237,1764879041235,-500.0,0.000329,30]
[396250238,1764879041246,-500.0,0.000329,30]
[396250239,1764879041256,-500.0,0.000329,30]
[396250240,1764879041267,-500.0,0.000329,30]
[396250241,1764879041277,-500.0,0.000329,30]
[396250242,1764879041287,-500.0,0.000329,30]
[396250243,1764879041297,-180.17,0.000329,14]
[396250244,1764879041308,-312.29,0.000329,14]
[396250245,1764879041318,-150.0,0.00033,8]
[396250246,1764879041329,-409.34,0.00033165,2]
[396250247,1764879041339,-2414.86832085,0.0003319,2]
[396250248,1764879041349,-4408.0,0.00033233,5]
[396250249,1764879041360,-909.0,0.00033247,2]
[396250250,1764879041370,-1971.63300449,0.000336,2]
[396250251,1764879041380,-1000.0,0.000336,2]
[396250252,1764879041390,-164.10134646,0.0003364,2]
[396250253,1764879041400,-200.0,0.00033881,10]
[396250254,1764879041409,-200.0,0.00034,10]
[396250255,1764879041419,-500.0,0.00034356,14]
[396250256,1764879041429,-500.0,0.00034356,14]
[396250257,1764879041439,-1860.84,0.00034581,2]
[396250258,1764879041449,-180.17,0.000346,14]
[396250259,1764879041458,-662.54,0.00034732,120]
[396250260,1764879041470,-1382.01,0.00034751,30]
[396250261,1764879041481,-312.29,0.000348,14]
[396250262,1764879041492,-237.58948286,0.0003492,2]
[396250263,1764879041502,-1971.06,0.00034976,2]
[396250264,1764879041511,-1000.0,0.00035057,2]
[396250265,1764879041521,-2983.61,0.00035065,2]
[396250266,1764879041531,-15372.39,0.000351,2]
[396250267,1764879041541,-205.96000001,0.00035616,2]
[396250268,1764879041691,-200.0,0.00035666,2]
[396250269,1764879041735,-330.0,0.00035666,2]
[396250270,1764879041746,-309.0,0.00035666,120]
[396250271,1764879041757,-1000.0,0.00035722,7]
[396250272,1764879041768,-199.0,0.0003589,7]
[396250273,1764879041778,-161.4835782,0.00035964,30]
[396250274,1764879041789,-151.0,0.00035996,14]
[396250275,1764879041800,-1000.0,0.00035996,7]
[396250276,1764879041811,-500.0,0.00035999,30]
[396250277,1764879041822,-500.0,0.00035999,30]
[396250278,1764879041833,-500.0,0.00035999,30]
[396250279,1764879041844,-1000.0,0.00035999,30]
[396250280,1764879041854,-1900.0,0.00035999,30]
[396250281,1764879041863,-500.0,0.00035999,30]
[396250282,1764879041873,-500.0,0.00035999,30]
[396250283,1764879041884,-6888.0,0.00035999,30]
[396250284,1764879041894,-500.0,0.00035999,30]
[396250285,1764879041904,-1000.0,0.00035999,30]
[396250286,1764879041914,-1900.0,0.00035999,30]
[396250287,1764879041925,-500.0,0.00035999,30]
[396250288,1764879041935,-500.0,0.00035999,30]
[396250289,1764879041945,-500.0,0.00035999,30]
[396250290,1764879041955,-7142.856,0.00035999,30]
[396250291,1764879041966,-1000.0,0.00035999,30]
[396250292,1764879041977,-1900.0,0.00035999,30]
[396250293,1764879041987,-500.0,0.00035999,30]
[396250294,1764879041999,-500.0,0.00035999,30]
[396250295,1764879042011,-500.0,0.00035999,30]
[396250296,1764879042022,-5570.75859674,0.00035999,30]
[396250297,1764879042034,-1900.0,0.00035999,30]
[396250298,1764879042044,-1000.0,0.00035999,30]
[396250299,1764879042053,-250.0,0.00035999,30]
[396250300,1764879042063,-250.0,0.00035999,30]
[396250301,1764879042072,-500.0,0.00035999,30]
[396250302,1764879042081,-500.0,0.00035999,30]
[396250303,1764879042091,-500.0,0.00035999,30]
[396250304,1764879042100,-600.0,0.00035999,30]
[396250305,1764879042110,-250.0,0.00035999,30]
[396250306,1764879042120,-250.0,0.00035999,30]
[396250307,1764879042129,-1900.0,0.00035999,30]
[396250308,1764879042139,-500.0,0.00035999,30]
[396250309,1764879042148,-500.0,0.00035999,30]
[396250310,1764879042158,-1000.0,0.00035999,30]
[396250311,1764879042167,-500.0,0.00035999,30]
[396250312,1764879042177,-600.0,0.00035999,30]
[396250313,1764879042188,-250.0,0.00035999,30]
[396250314,1764879042199,-1900.0,0.00035999,30]
[396250315,1764879042209,-250.0,0.00035999,30]
[396250316,1764879042222,-500.0,0.00035999,30]
[396250317,1764879042232,-500.0,0.00035999,30]
[396250318,1764879042242,-1000.0,0.00035999,30]
[396250319,1764879042252,-500.0,0.00035999,30]
[396250321,1764879042262,-1900.0,0.00035999,30]
[396250323,1764879042272,-500.0,0.00035999,30]
[396250324,1764879042282,-250.0,0.00035999,30]
[396250325,1764879042292,-250.0,0.00035999,30]
[396250326,1764879042303,-1000.0,0.00035999,30]
[396250327,1764879042314,-600.0,0.00035999,30]
[396250328,1764879042325,-500.0,0.00035999,30]
[396250329,1764879042336,-500.0,0.00035999,30]
[396250330,1764879042347,-1900.0,0.00035999,30]
[396250331,1764879042357,-250.0,0.00035999,30]
[396250332,1764879042367,-500.0,0.00035999,30]
[396250333,1764879042376,-250.0,0.00035999,30]
[396250334,1764879042386,-500.0,0.00035999,30]
[396250335,1764879042395,-1000.0,0.00035999,30]
[396250336,1764879042409,-600.0,0.00035999,30]
[396250337,1764879042419,-500.0,0.00035999,30]
[396250338,1764879042433,-500.0,0.00035999,30]
[396250339,1764879042451,-250.0,0.00035999,30]
[396250340,1764879042462,-1900.0,0.00035999,30]
[396250341,1764879042472,-500.0,0.00035999,30]
[396250342,1764879042482,-1000.0,0.00035999,30]
[396250343,1764879042492,-250.0,0.00035999,30]
[396250344,1764879042503,-600.0,0.00035999,30]
[396250345,1764879042513,-250.0,0.00035999,30]
[396250346,1764879042524,-500.0,0.00035999,30]
[396250347,1764879042535,-1000.0,0.00035999,30]
[396250348,1764879042545,-250.0,0.00035999,30]
[396250349,1764879042556,-600.0,0.00035999,30]
[396250350,1764879042572,-151.0,0.00035999,30]
[396250351,1764879042582,-250.0,0.00035999,30]
[396250352,1764879042592,-500.0,0.00035999,30]
[396250353,1764879042603,-1000.0,0.00035999,30]
[396250354,1764879042614,-600.0,0.00035999,30]
[396250355,1764879042624,-156.587,0.00035999,30]
[396250356,1764879042635,-250.0,0.00035999,30]
[396250357,1764879042648,-1000.0,0.00035999,30]
[396250358,1764879042659,-284.18681125,0.00035999,30]
[396250359,1764879042669,-162.380719,0.00035999,30]
[396250360,1764879042680,-250.0,0.00035999,30]
[396250361,1764879042690,-500.0,0.00035999,30]
[396250362,1764879042700,-1000.0,0.00035999,30]
[396250363,1764879042711,-151.0,0.00035999,30]
[396250364,1764879042722,-151.0,0.00035999,30]
[396250365,1764879042732,-500.0,0.00035999,30]
[396250366,1764879042743,-168.3888056,0.00035999,30]
[396250368,1764879042754,-250.0,0.00035999,30]
[396250369,1764879042764,-500.0,0.00035999,30]
[396250370,1764879042774,-1000.0,0.00035999,30]
[396250371,1764879042784,-151.0,0.00035999,30]
[396250372,1764879042794,-151.0,0.00035999,30]
[396250373,1764879042804,-500.0,0.00035999,30]
[396250374,1764879042814,-174.61919141,0.00035999,30]
[396250375,1764879042824,-500.0,0.00035999,30]
[396250376,1764879042834,-1000.0,0.00035999,30]
[396250377,1764879042843,-151.0,0.00035999,30]
[396250378,1764879042853,-151.0,0.00035999,30]
[396250379,1764879042863,-500.0,0.00035999,30]
[396250380,1764879042872,-181.08010149,0.00035999,30]
[396250381,1764879042881,-500.0,0.00035999,30]
[396250382,1764879042891,-1000.0,0.00035999,30]
[396250383,1764879042900,-151.0,0.00035999,30]
[396250384,1764879042910,-151.0,0.00035999,30]
[396250385,1764879042919,-151.0,0.00035999,30]
[396250386,1764879042928,-500.0,0.00035999,30]
[396250387,1764879042938,-187.78006525,0.00035999,30]
[396250388,1764879042947,-500.0,0.00035999,30]
[396250389,1764879042958,-1000.0,0.00035999,30]
[396250390,1764879042969,-151.0,0.00035999,30]
[396250391,1764879042979,-151.0,0.00035999,30]
[396250392,1764879042989,-500.0,0.00035999,30]
[396250393,1764879043000,-194.72792766,0.00035999,30]
[396250394,1764879043010,-500.0,0.00035999,30]
[396250395,1764879043020,-151.0,0.00035999,30]
[396250396,1764879043030,-1000.0,0.00035999,30]
[396250397,1764879043040,-151.0,0.00035999,30]
[396250398,1764879043051,-151.0,0.00035999,30]
[396250399,1764879043061,-500.0,0.00035999,30]
[396250400,1764879043072,-201.93286098,0.00035999,30]
[396250401,1764879043082,-151.0,0.00035999,30]
[396250402,1764879043092,-1000.0,0.00035999,30]
[396250403,1764879043103,-311.1,0.00035999,30]
[396250404,1764879043113,-151.0,0.00035999,30]
[396250405,1764879043124,-151.0,0.00035999,30]
[396250406,1764879043135,-500.0,0.00035999,30]
[396250407,1764879043145,-151.0,0.00035999,30]
[396250408,1764879043155,-1000.0,0.00035999,30]
[396250409,1764879043166,-151.0,0.00035999,30]
[396250410,1764879043177,-500.0,0.00035999,30]
[396250411,1764879043187,-151.0,0.00035999,30]
[396250412,1764879043198,-151.0,0.00035999,30]
[396250413,1764879043209,-500.0,0.00035999,30]
[396250414,1764879043220,-151.0,0.00035999,30]
[396250415,1764879043231,-151.0,0.00035999,30]
[396250416,1764879043242,-151.0,0.00035999,30]
[396250417,1764879043253,-1000.0,0.00035999,30]
[396250418,1764879043262,-151.0,0.00035999,30]
[396250419,1764879043272,-151.0,0.00035999,30]
[396250420,1764879043283,-160.0,0.00035999,30]
[396250421,1764879043292,-151.0,0.00035999,30]
[396250422,1764879043302,-414.0,0.00035999,30]
[396250423,1764879043312,-1000.0,0.00035999,30]
[396250424,1764879043322,-151.0,0.00035999,30]
[396250425,1764879043332,-4000.0,0.00035999,30]
[396250426,1764879043343,-429.318,0.00035999,30]
[396250427,1764879043353,-1000.0,0.00035999,30]
[396250428,1764879043364,-160.0,0.00035999,30]
[396250429,1764879043374,-151.0,0.00035999,30]
[396250430,1764879043384,-4000.0,0.00035999,30]
[396250431,1764879043394,-160.0,0.00035999,30]
[396250432,1764879043404,-445.202766,0.00035999,30]
[396250433,1764879043414,-1000.0,0.00035999,30]
[396250434,1764879043424,-151.0,0.00035999,30]
[396250435,1764879043435,-4000.0,0.00035999,30]
[396250436,1764879043446,-461.67526834,0.00035999,30]
[396250437,1764879043457,-160.0,0.00035999,30]
[396250438,1764879043468,-500.0,0.00035999,30]
[396250439,1764879043478,-1000.0,0.00035999,30]
[396250440,1764879043489,-4000.0,0.00035999,30]
[396250441,1764879043499,-478.75725327,0.00035999,30]
[396250442,1764879043510,-500.0,0.00035999,30]
[396250443,1764879043520,-1000.0,0.00035999,30]
[396250444,1764879043531,-500.0,0.00035999,30]
[396250445,1764879043541,-220.0,0.00035999,30]
[396250446,1764879043552,-1000.0,0.00035999,30]
[396250447,1764879043565,-4000.0,0.00035999,30]
[396250448,1764879043576,-160.0,0.00035999,30]
[396250449,1764879043587,-496.47127164,0.00035999,30]
[396250450,1764879043599,-500.0,0.00035999,30]
[396250451,1764879043610,-1000.0,0.00035999,30]
[396250452,1764879043620,-518.5,0.00035999,30]
[396250453,1764879043631,-220.0,0.00035999,30]
[396250454,1764879043642,-1000.0,0.00035999,30]
[396250455,1764879043654,-4000.0,0.00035999,30]
[396250456,1764879043664,-160.0,0.00035999,30]
[396250457,1764879043674,-514.84070869,0.00035999,30]
[396250458,1764879043685,-500.0,0.00035999,30]
[396250459,1764879043695,-537.6845,0.00035999,30]
[396250460,1764879043706,-1000.0,0.00035999,30]
[396250461,1764879043717,-1000.0,0.00035999,30]
[396250462,1764879043727,-4000.0,0.00035999,30]
[396250463,1764879043737,-160.0,0.00035999,30]
[396250464,1764879043748,-533.88981491,0.00035999,30]
[396250465,1764879043758,-500.0,0.00035999,30]
[396250466,1764879043769,-220.0,0.00035999,30]
[396250467,1764879043779,-557.5788265,0.00035999,30]
[396250468,1764879043790,-151.0,0.00035999,30]
[396250469,1764879043801,-1000.0,0.00035999,30]
[396250470,1764879043812,-1000.0,0.00035999,30]
[396250471,1764879043822,-4000.0,0.00035999,30]
[396250472,1764879043831,-553.64373807,0.00035999,30]
[396250473,1764879043841,-160.0,0.00035999,30]
[396250474,1764879043850,-500.0,0.00035999,30]
[396250475,1764879043859,-156.587,0.00035999,30]
[396250476,1764879043868,-1000.0,0.00035999,30]
[396250478,1764879043878,-4000.0,0.00035999,30]
[396250479,1764879043888,-500.0,0.00035999,30]
[396250480,1764879043900,-160.0,0.00035999,30]
[396250481,1764879043910,-162.380719,0.00035999,30]
[396250482,1764879043922,-1000.0,0.00035999,30]
[396250483,1764879043934,-500.0,0.00035999,30]
[396250484,1764879043945,-1000.0,0.00035999,30]
[396250485,1764879043955,-168.3888056,0.00035999,30]
[396250486,1764879043966,-500.0,0.00035999,30]
[396250487,1764879043977,-174.61919141,0.00035999,30]
[396250488,1764879044140,-1000.0,0.00035999,30]
[396250489,1764879044151,-500.0,0.00035999,30]
[396250490,1764879044162,-181.08010149,0.00035999,30]
[396250491,1764879044173,-1000.0,0.00035999,30]
[396250492,1764879044183,-500.0,0.00035999,30]
[396250493,1764879044194,-187.78006525,0.00035999,30]
[396250494,1764879044204,-151.0,0.00035999,30]
[396250495,1764879044215,-151.0,0.00035999,30]
[396250496,1764879044227,-194.72792766,0.00035999,30]
[396250497,1764879044237,-500.0,0.00035999,30]
[396250498,1764879044248,-151.0,0.00035999,30]
[396250499,1764879044258,-151.0,0.00035999,30]
[396250500,1764879044268,-202.28651857,0.00035999,30]
[396250501,1764879044279,-500.0,0.00035999,30]
[396250502,1764879044289,-151.0,0.00035999,30]
[396250503,1764879044299,-520.0,0.00035999,30]
[396250504,1764879044308,-500.0,0.00035999,30]
[396250505,1764879044319,-151.0,0.00035999,30]
[396250506,1764879044329,-539.24,0.00035999,30]
[396250507,1764879044339,-500.0,0.00035999,30]
[396250508,1764879044350,-151.0,0.00035999,30]
[396250509,1764879044362,-559.19188,0.00035999,30]
[396250510,1764879044373,-500.0,0.00035999,30]
[396250511,1764879044385,-151.0,0.00035999,30]
[396250512,1764879044395,-500.0,0.00035999,30]
[396250513,1764879044405,-579.88197956,0.00035999,30]
[396250514,1764879044415,-151.0,0.00035999,30]
[396250515,1764879044425,-2000.0,0.00035999,30]
[396250516,1764879044435,-500.0,0.00035999,30]
[396250517,1764879044446,-601.3376128,0.00035999,30]
[396250518,1764879044456,-151.0,0.00035999,30]
[396250519,1764879044466,-2000.0,0.00035999,30]
[396250520,1764879044476,-623.58710448,0.00035999,30]
[396250521,1764879044487,-151.0,0.00035999,30]
[396250522,1764879044498,-2000.0,0.00035999,30]
[396250523,1764879044508,-646.65982734,0.00035999,30]
[396250524,1764879044519,-2000.0,0.00035999,30]
[396250525,1764879044529,-670.58624095,0.00035999,30]
[396250526,1764879044539,-2000.0,0.00035999,30]
[396250527,1764879044549,-695.39793187,0.00035999,30]
[396250528,1764879044562,-2000.0,0.00035999,30]
[396250529,1764879044573,-695.39793187,0.00035999,30]
[396250530,1764879044583,-2000.0,0.00035999,30]
[396250531,1764879044593,-2000.0,0.00035999,30]
[396250532,1764879044604,-2000.0,0.00035999,30]
[396250533,1764879044614,-150.0,0.00036,120]
[396250534,1764879044624,-15850.6418077,0.00036,30]
[396250535,1764879044634,-153.78771342,0.00036,120]
[396250536,1764879044646,-200.0,0.00036,120]
[396250537,1764879044657,-150.0,0.00036,13]
[396250538,1764879044667,-867.42,0.00036,30]
[396250539,1764879044676,-182.69278577,0.00036,14]
[396250540,1764879044687,-500.0,0.00036,14]
[396250541,1764879044697,-150.0,0.00036,2]
[396250542,1764879044707,-151.0,0.00036,2]
[396250543,1764879044717,-150.0,0.00036,2]
[396250544,1764879044727,-477.92066011,0.00036,2]
[396250545,1764879044737,-150.0,0.00036,2]
[396250546,1764879044747,-793.87912213,0.00036,2]
[396250547,1764879044757,-150.0,0.00036,2]
[396250548,1764879044766,-697.66863107,0.00036,2]
[396250549,1764879044777,-191.38741443,0.00036,7]
[396250550,1764879044786,-150.0,0.00036,7]
[396250551,1764879044796,-150.0,0.00036,7]
[396250552,1764879044806,-150.0,0.00036,7]
[396250553,1764879044816,-150.0,0.00036,7]
[396250554,1764879044825,-150.0,0.00036,7]
[396250555,1764879044835,-150.0,0.00036,7]
[396250556,1764879044844,-150.0,0.00036,7]
[396250557,1764879044854,-152.51466941,0.00036,7]
[396250558,1764879044863,-150.0,0.00036,7]
[396250559,1764879044873,-1006.0,0.00036,7]
[396250560,1764879044882,-151.0,0.00036,5]
[396250561,1764879044892,-500.0,0.00036,2]
[396250562,1764879044903,-500.0,0.00036,2]
[396250563,1764879044913,-500.0,0.00036,2]
[396250564,1764879044923,-406.94650257,0.00036,2]
[396250565,1764879044933,-861.7,0.00036,5]
[396250566,1764879044942,-953.75,0.00036014,2]
[396250567,1764879044952,-5000.0,0.00036024,2]
[396250568,1764879044961,-2414.86832085,0.00036038,2]
[396250569,1764879044972,-4632.1,0.00036047,2]
[396250570,1764879044982,-2500.0,0.00036061,2]
[396250571,1764879044992,-5000.0,0.00036095,2]
[396250572,1764879045002,-180.17,0.000361,14]
[396250573,1764879045013,-25000.0,0.00036113,2]
[396250574,1764879045023,-150.0,0.00036114,20]
[396250575,1764879045034,-25000.0,0.00036115,2]
[396250576,1764879045044,-5000.0,0.00036154,2]
[396250577,1764879045055,-5000.0,0.0003621,2]
[396250578,1764879045064,-5000.0,0.00036214,2]
[396250579,1764879045074,-909.0,0.00036247,2]
[396250580,1764879045086,-1000.0,0.0003627,7]
[396250581,1764879045095,-3296.62,0.00036271,2]
[396250582,1764879045104,-5000.0,0.00036297,2]
[396250583,1764879045114,-312.29,0.000363,14]
[396250584,1764879045123,-4685.89,0.00036303,2]
[396250585,1764879045133,-151.0,0.00036303,31]
[396250586,1764879045142,-607.168677,0.00036303,31]
[396250587,1764879045152,-151.0,0.00036303,31]
[396250588,1764879045176,-607.168677,0.00036303,31]
[396250589,1764879045193,-607.168677,0.00036303,31]
[396250590,1764879045215,-607.168677,0.00036303,31]
[396250591,1764879045234,-160.456804,0.00036303,31]
[396250592,1764879045251,-151.0,0.00036303,31]
[396250593,1764879045271,-151.0,0.00036303,31]
[396250594,1764879045292,-151.0,0.00036303,31]
[396250595,1764879045316,-151.0,0.00036303,31]
[396250596,1764879045337,-191.686141,0.00036303,31]
[396250597,1764879045361,-721.070312,0.00036303,31]
[396250598,1764879045383,-721.070312,0.00036303,31]
[396250599,1764879045398,-721.070312,0.00036303,31]
[396250600,1764879045419,-721.070312,0.00036303,31]
[396250601,1764879045433,-5000.0,0.00036305,2]
[396250602,1764879045451,-151.0,0.00036305,28]
[396250603,1764879045467,-198.693675,0.00036305,28]
[396250604,1764879045487,-2545.96,0.00036319,2]
[396250605,1764879045507,-151.0,0.00036319,31]
[396250606,1764879045526,-151.0,0.00036319,31]
[396250607,1764879045545,-151.0,0.00036319,15]
[396250608,1764879045571,-151.0,0.00036319,15]
[396250609,1764879045588,-151.0,0.00036319,15]
[396250610,1764879045605,-151.0,0.00036319,15]
[396250611,1764879045622,-151.0,0.00036319,31]
[396250612,1764879045640,-641.95,0.0003632,2]
[396250613,1764879045657,-5000.0,0.00036323,2]
[396250614,1764879045675,-5000.0,0.00036333,2]
[396250615,1764879045691,-1489.01,0.00036334,2]
[396250616,1764879045707,-5000.0,0.00036334,2]
[396250617,1764879045723,-5000.0,0.00036335,2]
[396250618,1764879045738,-5000.0,0.00036364,2]
[396250619,1764879045754,-5000.0,0.000364,2]
[396250620,1764879045770,-3281.723842,0.000364,31]
[396250622,1764879045786,-3281.723842,0.000364,31]
[396250625,1764879045802,-151.0,0.000364,31]
[396250628,1764879045817,-3281.723842,0.000364,31]